[Event "Titled Tuesday Blitz August 17 2021"]
[White "Amburgy, Ryan"]
[Black "Indjic, Aleksandar"]
[WhiteFideId "30924820"]
[BlackFideId "911925"]
[WhiteElo "2066"]
[BlackElo "2643"]
[Result "0-1"]
[Round "04"]
[TimeControl "180+1"]
[Date "2021.08.17"]
[WhiteClock "0:00:07"]
[BlackClock "0:00:06"]

1. Nf3 {[%clk 0:03:00]}  d5 {[%clk 0:02:57]} 2. e3 {[%clk 0:03:00]}  c5 {[%clk 0:02:55]} 3. c4 {[%clk 0:03:01]}  d4 {[%clk 0:02:54]} 4. b4 {[%clk 0:03:01]}  dxe3 {[%clk 0:02:52]} 5. fxe3 {[%clk 0:03:02]}  cxb4 {[%clk 0:02:51]} 6. d4 {[%clk 0:03:03]}  e5 {[%clk 0:02:50]} 7. Nxe5 {[%clk 0:02:59]}  Nc6 {[%clk 0:02:38]} 8. Nf3 {[%clk 0:02:54]}  Bg4 {[%clk 0:02:31]} 9. Bd3 {[%clk 0:02:44]}  Bd6 {[%clk 0:02:09]} 10. Bb2 {[%clk 0:02:31]}  Nf6 {[%clk 0:02:08]} 11. Nbd2 {[%clk 0:02:31]}  O-O {[%clk 0:02:06]} 12. O-O {[%clk 0:02:27]}  Bh5 {[%clk 0:01:45]} 13. Qe1 {[%clk 0:02:19]}  Re8 {[%clk 0:01:31]} 14. d5 {[%clk 0:02:02]}  Bc5 {[%clk 0:01:15]} 15. Bxf6 {[%clk 0:01:43]}  Qxf6 {[%clk 0:00:58]} 16. Ne4 {[%clk 0:01:39]}  Rxe4 {[%clk 0:00:41]} 17. Bxe4 {[%clk 0:01:38]}  Ne5 {[%clk 0:00:38]} 18. Qg3 {[%clk 0:01:13]}  Bxf3 {[%clk 0:00:31]} 19. Bxf3 {[%clk 0:01:11]}  Qd6 {[%clk 0:00:27]} 20. Be4 {[%clk 0:01:04]}  Re8 {[%clk 0:00:26]} 21. Rae1 {[%clk 0:00:43]}  g6 {[%clk 0:00:25]} 22. Qf4 {[%clk 0:00:40]}  Re7 {[%clk 0:00:19]} 23. h4 {[%clk 0:00:38]}  Nxc4 {[%clk 0:00:19]} 24. Qxd6 {[%clk 0:00:16]}  Nxd6 {[%clk 0:00:20]} 25. Bd3 {[%clk 0:00:17]}  f5 {[%clk 0:00:20]} 26. Kf2 {[%clk 0:00:15]}  Kg7 {[%clk 0:00:20]} 27. Kf3 {[%clk 0:00:15]}  Nf7 {[%clk 0:00:18]} 28. Rd1 {[%clk 0:00:12]}  Ne5+ {[%clk 0:00:17]} 29. Ke2 {[%clk 0:00:13]}  Ng4 {[%clk 0:00:18]} 30. e4 {[%clk 0:00:12]}  fxe4 {[%clk 0:00:16]} 31. Bc2 {[%clk 0:00:13]}  Bd6 {[%clk 0:00:15]} 32. Rd4 {[%clk 0:00:10]}  Nf6 {[%clk 0:00:14]} 33. Rc4 {[%clk 0:00:07]}  a5 {[%clk 0:00:13]} 34. Ke3 {[%clk 0:00:06]}  Nxd5+ {[%clk 0:00:13]} 35. Kd4 {[%clk 0:00:07]}  Nf6 {[%clk 0:00:13]} 36. Ba4 {[%clk 0:00:04]}  b6 {[%clk 0:00:13]} 37. Rc8 {[%clk 0:00:04]}  Bc5+ {[%clk 0:00:13]} 38. Kc4 {[%clk 0:00:04]}  e3 {[%clk 0:00:13]} 39. Re1 {[%clk 0:00:05]}  e2 {[%clk 0:00:13]} 40. Bd1 {[%clk 0:00:04]}  exd1=Q {[%clk 0:00:12]} 41. Rxd1 {[%clk 0:00:05]}  Ne4 {[%clk 0:00:12]} 42. Ra8 {[%clk 0:00:03]}  Nd6+ {[%clk 0:00:10]} 43. Kd5 {[%clk 0:00:03]}  Nb5 {[%clk 0:00:10]} 44. Kc6 {[%clk 0:00:03]}  Nd4+ {[%clk 0:00:07]} 45. Kd5 {[%clk 0:00:03]}  Nf5 {[%clk 0:00:07]} 46. Kc6 {[%clk 0:00:02]}  Nxh4 {[%clk 0:00:07]} 47. Rdd8 {[%clk 0:00:02]}  Nxg2 {[%clk 0:00:07]} 48. Rg8+ {[%clk 0:00:03]}  Kh6 {[%clk 0:00:07]} 49. Raf8 {[%clk 0:00:03]}  Ne3 {[%clk 0:00:07]} 50. Rf2 {[%clk 0:00:03]}  Ng4 {[%clk 0:00:07]} 51. Rg2 {[%clk 0:00:04]}  Kg5 {[%clk 0:00:07]} 52. Kb5 {[%clk 0:00:04]}  h5 {[%clk 0:00:08]} 53. Rh8 {[%clk 0:00:05]}  Re5 {[%clk 0:00:07]} 54. Kc4 {[%clk 0:00:04]}  Rf5 {[%clk 0:00:06]} 55. Re8 {[%clk 0:00:04]}  a4 {[%clk 0:00:07]} 56. Kb5 {[%clk 0:00:05]}  b3 {[%clk 0:00:06]} 57. axb3 {[%clk 0:00:05]}  axb3 {[%clk 0:00:07]} 58. Kc4 {[%clk 0:00:06]}  Rf2 {[%clk 0:00:06]} 59. Rxf2 {[%clk 0:00:06]}  Nxf2 {[%clk 0:00:06]} 60. Kxb3 {[%clk 0:00:07]}  h4 {[%clk 0:00:07]} 61. Re4 {[%clk 0:00:07]}  Nxe4 {[%clk 0:00:06]} 0-1


[Site "https://www.chess.com"]

[Event "Titled Tuesday Blitz August 17 2021"]
[White "Awatramani, Janak"]
[Black "Pultinevicius, Paulius"]
[WhiteFideId "2608359"]
[BlackFideId "12809390"]
[WhiteElo "2891"]
[BlackElo "2479"]
[Result "1-0"]
[Round "04"]
[TimeControl "180+1"]
[Date "2021.08.17"]
[WhiteClock "0:00:48"]
[BlackClock "0:00:31"]

1. e4 {[%clk 0:03:00]}  c6 {[%clk 0:02:57]} 2. d4 {[%clk 0:02:59]}  d5 {[%clk 0:02:57]} 3. Nc3 {[%clk 0:03:00]}  dxe4 {[%clk 0:02:56]} 4. Nxe4 {[%clk 0:03:01]}  Bf5 {[%clk 0:02:55]} 5. Ng3 {[%clk 0:03:01]}  Bg6 {[%clk 0:02:55]} 6. Nf3 {[%clk 0:03:01]}  Nd7 {[%clk 0:02:55]} 7. c3 {[%clk 0:03:02]}  Ngf6 {[%clk 0:02:54]} 8. Bc4 {[%clk 0:03:01]}  e6 {[%clk 0:02:54]} 9. O-O {[%clk 0:03:02]}  Bd6 {[%clk 0:02:54]} 10. Re1 {[%clk 0:03:02]}  Qc7 {[%clk 0:02:55]} 11. a3 {[%clk 0:02:55]}  a5 {[%clk 0:02:54]} 12. Bg5 {[%clk 0:02:52]}  h6 {[%clk 0:02:52]} 13. Bxf6 {[%clk 0:02:51]}  gxf6 {[%clk 0:02:51]} 14. Nh4 {[%clk 0:02:44]}  Rg8 {[%clk 0:02:44]} 15. Nxg6 {[%clk 0:02:34]}  Rxg6 {[%clk 0:02:45]} 16. Qh5 {[%clk 0:02:34]}  Nf8 {[%clk 0:02:20]} 17. Bd3 {[%clk 0:02:30]}  Rg8 {[%clk 0:01:57]} 18. Qxh6 {[%clk 0:02:24]}  Be7 {[%clk 0:01:56]} 19. Nh5 {[%clk 0:01:59]}  Qd8 {[%clk 0:01:35]} 20. Re2 {[%clk 0:01:43]}  a4 {[%clk 0:01:34]} 21. Rae1 {[%clk 0:01:41]}  Ra5 {[%clk 0:01:35]} 22. Ng7+ {[%clk 0:01:31]}  Kd7 {[%clk 0:01:34]} 23. Nf5 {[%clk 0:01:32]}  Ng6 {[%clk 0:01:30]} 24. Nxe7 {[%clk 0:01:29]}  Qxe7 {[%clk 0:01:31]} 25. Qh7 {[%clk 0:01:25]}  Qf8 {[%clk 0:00:53]} 26. Bxg6 {[%clk 0:01:19]}  Rxg6 {[%clk 0:00:51]} 27. Rxe6 {[%clk 0:01:20]}  Rag5 {[%clk 0:00:51]} 28. Re7+ {[%clk 0:01:13]}  Qxe7 {[%clk 0:00:49]} 29. Rxe7+ {[%clk 0:01:13]}  Kxe7 {[%clk 0:00:50]} 30. g3 {[%clk 0:01:10]}  Rb5 {[%clk 0:00:50]} 31. h4 {[%clk 0:01:01]}  f5 {[%clk 0:00:43]} 32. h5 {[%clk 0:00:56]}  Rg5 {[%clk 0:00:43]} 33. h6 {[%clk 0:00:48]}  Rg6 {[%clk 0:00:35]} 34. Qxg6 {[%clk 0:00:45]}  fxg6 {[%clk 0:00:33]} 35. h7 {[%clk 0:00:46]}  Rxb2 {[%clk 0:00:32]} 36. h8=Q {[%clk 0:00:46]}  Rb3 {[%clk 0:00:33]} 37. Qe5+ {[%clk 0:00:46]}  Kd7 {[%clk 0:00:31]} 38. Qg7+ {[%clk 0:00:46]}  Kc8 {[%clk 0:00:31]} 39. Qxg6 {[%clk 0:00:47]}  Rxa3 {[%clk 0:00:31]} 40. Qxf5+ {[%clk 0:00:47]}  Kb8 {[%clk 0:00:31]} 41. Qf8+ {[%clk 0:00:48]} 1-0


[Site "https://www.chess.com"]

[Event "Titled Tuesday Blitz August 17 2021"]
[White "Ayushh, Ravikumar"]
[Black "Hansen, Sune Berg"]
[WhiteFideId "35039482"]
[BlackFideId "1400266"]
[WhiteElo "1441"]
[BlackElo "2629"]
[Result "0-1"]
[Round "04"]
[TimeControl "180+1"]
[Date "2021.08.18"]
[WhiteClock "0:00:03"]
[BlackClock "0:00:19"]

1. d4 {[%clk 0:02:48]}  Nf6 {[%clk 0:02:59]} 2. Nf3 {[%clk 0:02:48]}  g6 {[%clk 0:02:58]} 3. g3 {[%clk 0:02:46]}  Bg7 {[%clk 0:02:58]} 4. Bg2 {[%clk 0:02:46]}  O-O {[%clk 0:02:59]} 5. O-O {[%clk 0:02:46]}  d6 {[%clk 0:02:59]} 6. c4 {[%clk 0:02:46]}  Nbd7 {[%clk 0:02:57]} 7. b3 {[%clk 0:02:46]}  e5 {[%clk 0:02:56]} 8. e3 {[%clk 0:02:37]}  Re8 {[%clk 0:02:54]} 9. Bb2 {[%clk 0:02:37]}  e4 {[%clk 0:02:53]} 10. Nfd2 {[%clk 0:02:36]}  Nf8 {[%clk 0:02:53]} 11. Nc3 {[%clk 0:02:36]}  Bf5 {[%clk 0:02:52]} 12. Rc1 {[%clk 0:02:32]}  h5 {[%clk 0:02:51]} 13. h4 {[%clk 0:02:31]}  N8h7 {[%clk 0:02:47]} 14. c5 {[%clk 0:02:23]}  d5 {[%clk 0:02:46]} 15. b4 {[%clk 0:02:11]}  c6 {[%clk 0:02:42]} 16. b5 {[%clk 0:02:10]}  g5 {[%clk 0:02:42]} 17. hxg5 {[%clk 0:02:03]}  Nxg5 {[%clk 0:02:41]} 18. Qa4 {[%clk 0:01:44]}  Qd7 {[%clk 0:02:41]} 19. bxc6 {[%clk 0:01:29]}  bxc6 {[%clk 0:02:41]} 20. f4 {[%clk 0:01:20]}  Ngh7 {[%clk 0:02:18]} 21. Qd1 {[%clk 0:01:14]}  Kh8 {[%clk 0:02:15]} 22. Kf2 {[%clk 0:01:10]}  Ng4+ {[%clk 0:02:08]} 23. Ke2 {[%clk 0:01:09]}  Nhf6 {[%clk 0:02:09]} 24. Rh1 {[%clk 0:01:05]}  Rab8 {[%clk 0:02:06]} 25. Rb1 {[%clk 0:01:02]}  Nh6 {[%clk 0:02:05]} 26. Ke1 {[%clk 0:00:57]}  Bg4 {[%clk 0:02:04]} 27. Qc2 {[%clk 0:00:56]}  Nf5 {[%clk 0:02:03]} 28. Nf1 {[%clk 0:00:55]}  Kg8 {[%clk 0:02:00]} 29. Kd2 {[%clk 0:00:50]}  Qc7 {[%clk 0:01:58]} 30. Bc1 {[%clk 0:00:45]}  Rxb1 {[%clk 0:01:56]} 31. Qxb1 {[%clk 0:00:46]}  Rb8 {[%clk 0:01:49]} 32. Qc2 {[%clk 0:00:46]}  Qc8 {[%clk 0:01:38]} 33. Qa4 {[%clk 0:00:37]}  Qb7 {[%clk 0:01:31]} 34. Qb3 {[%clk 0:00:34]}  Qc7 {[%clk 0:01:28]} 35. Qa4 {[%clk 0:00:33]}  a5 {[%clk 0:01:25]} 36. Kc2 {[%clk 0:00:30]}  Rb4 {[%clk 0:01:22]} 37. Qa3 {[%clk 0:00:26]}  Rc4 {[%clk 0:00:55]} 38. Qb3 {[%clk 0:00:17]}  Nd7 {[%clk 0:00:54]} 39. Bd2 {[%clk 0:00:16]}  a4 {[%clk 0:00:52]} 40. Qb2 {[%clk 0:00:15]}  Nxc5 {[%clk 0:00:47]} 41. dxc5 {[%clk 0:00:14]}  Rxc5 {[%clk 0:00:45]} 42. Kb1 {[%clk 0:00:14]}  Rc4 {[%clk 0:00:41]} 43. a3 {[%clk 0:00:12]}  Qd8 {[%clk 0:00:35]} 44. Nh2 {[%clk 0:00:09]}  Be2 {[%clk 0:00:31]} 45. Bf1 {[%clk 0:00:05]}  Bxf1 {[%clk 0:00:30]} 46. Rxf1 {[%clk 0:00:06]}  Qf6 {[%clk 0:00:28]} 47. Rc1 {[%clk 0:00:04]}  Nxg3 {[%clk 0:00:28]} 48. Nf1 {[%clk 0:00:04]}  Nxf1 {[%clk 0:00:27]} 49. Rxf1 {[%clk 0:00:05]}  h4 {[%clk 0:00:26]} 50. Rg1 {[%clk 0:00:05]}  h3 {[%clk 0:00:25]} 51. Nd1 {[%clk 0:00:05]}  h2 {[%clk 0:00:19]} 52. Bc3 {[%clk 0:00:03]}  Rxc3 {[%clk 0:00:18]} 53. Rxg7+ {[%clk 0:00:02]}  Qxg7 {[%clk 0:00:18]} 54. Qxc3 {[%clk 0:00:03]}  Qxc3 {[%clk 0:00:18]} 55. Nxc3 {[%clk 0:00:03]}  h1=Q+ {[%clk 0:00:19]} 0-1


[Site "https://www.chess.com"]

[Event "Titled Tuesday Blitz August 17 2021"]
[White "Barp, Alberto"]
[Black "Ibrahimli, Murad"]
[WhiteFideId "872555"]
[BlackFideId "13410229"]
[WhiteElo "2229"]
[BlackElo "2109"]
[Result "1-0"]
[Round "04"]
[TimeControl "180+1"]
[Date "2021.08.17"]
[WhiteClock "0:00:17"]
[BlackClock "0:00:08"]

1. Nf3 {[%clk 0:03:00]}  Nf6 {[%clk 0:02:58]} 2. g3 {[%clk 0:03:00]}  g6 {[%clk 0:02:58]} 3. Bg2 {[%clk 0:02:59]}  Bg7 {[%clk 0:02:58]} 4. O-O {[%clk 0:02:59]}  O-O {[%clk 0:02:59]} 5. c4 {[%clk 0:02:59]}  c6 {[%clk 0:02:49]} 6. b3 {[%clk 0:02:53]}  d5 {[%clk 0:02:48]} 7. cxd5 {[%clk 0:02:51]}  Nxd5 {[%clk 0:02:46]} 8. d4 {[%clk 0:02:50]}  c5 {[%clk 0:02:46]} 9. Bb2 {[%clk 0:02:49]}  Nc6 {[%clk 0:02:45]} 10. Qd2 {[%clk 0:02:44]}  Nc7 {[%clk 0:02:00]} 11. Rd1 {[%clk 0:02:39]}  Bg4 {[%clk 0:01:55]} 12. d5 {[%clk 0:02:16]}  Bxb2 {[%clk 0:01:35]} 13. Qxb2 {[%clk 0:02:15]}  Bxf3 {[%clk 0:01:36]} 14. Bxf3 {[%clk 0:02:09]}  Nd4 {[%clk 0:01:36]} 15. Bg2 {[%clk 0:02:09]}  Rb8 {[%clk 0:01:36]} 16. Nc3 {[%clk 0:02:03]}  Ncb5 {[%clk 0:01:34]} 17. Ne4 {[%clk 0:02:01]}  b6 {[%clk 0:01:33]} 18. e3 {[%clk 0:01:55]}  Nf5 {[%clk 0:01:33]} 19. a4 {[%clk 0:01:50]}  Nbd6 {[%clk 0:01:31]} 20. Nc3 {[%clk 0:01:48]}  a6 {[%clk 0:01:18]} 21. Ne2 {[%clk 0:01:47]}  Nh6 {[%clk 0:01:09]} 22. e4 {[%clk 0:01:46]}  f6 {[%clk 0:01:09]} 23. Nf4 {[%clk 0:01:45]}  Qc8 {[%clk 0:01:00]} 24. Ne6 {[%clk 0:01:45]}  Re8 {[%clk 0:01:00]} 25. e5 {[%clk 0:01:45]}  Ndf5 {[%clk 0:00:42]} 26. exf6 {[%clk 0:01:42]}  exf6 {[%clk 0:00:43]} 27. Qxf6 {[%clk 0:01:41]}  Qd7 {[%clk 0:00:42]} 28. h3 {[%clk 0:01:35]}  Nd6 {[%clk 0:00:37]} 29. a5 {[%clk 0:01:31]}  c4 {[%clk 0:00:28]} 30. bxc4 {[%clk 0:01:30]}  Nxc4 {[%clk 0:00:29]} 31. axb6 {[%clk 0:01:29]}  Rxb6 {[%clk 0:00:28]} 32. Rac1 {[%clk 0:01:29]}  Rc8 {[%clk 0:00:25]} 33. Qd4 {[%clk 0:01:26]}  Rb4 {[%clk 0:00:21]} 34. Nc5 {[%clk 0:01:18]}  Qb5 {[%clk 0:00:21]} 35. Ne4 {[%clk 0:01:14]}  Nf5 {[%clk 0:00:20]} 36. Qd3 {[%clk 0:01:02]}  Rd8 {[%clk 0:00:17]} 37. g4 {[%clk 0:00:51]}  Nh4 {[%clk 0:00:17]} 38. d6 {[%clk 0:00:45]}  Nxg2 {[%clk 0:00:15]} 39. Kxg2 {[%clk 0:00:45]}  Ne5 {[%clk 0:00:16]} 40. Qe3 {[%clk 0:00:36]}  Qb7 {[%clk 0:00:13]} 41. Rd4 {[%clk 0:00:32]}  Rb3 {[%clk 0:00:09]} 42. Rc3 {[%clk 0:00:24]}  Rxc3 {[%clk 0:00:09]} 43. Qxc3 {[%clk 0:00:25]}  Rc8 {[%clk 0:00:09]} 44. Qe3 {[%clk 0:00:21]}  Nd7 {[%clk 0:00:09]} 45. Kg3 {[%clk 0:00:20]}  Rf8 {[%clk 0:00:09]} 46. f3 {[%clk 0:00:20]}  Qb6 {[%clk 0:00:09]} 47. Qd2 {[%clk 0:00:17]}  Qa5 {[%clk 0:00:08]} 48. Qxa5 {[%clk 0:00:17]} 1-0


[Site "https://www.chess.com"]

[Event "Titled Tuesday Blitz August 17 2021"]
[White "Bologan, Victor"]
[Black "Pourkashiyan, Atousa"]
[WhiteFideId "13900048"]
[BlackFideId "12502014"]
[WhiteElo "2511"]
[BlackElo "2285"]
[Result "1-0"]
[Round "04"]
[TimeControl "180+1"]
[Date "2021.08.17"]
[WhiteClock "0:00:10"]
[BlackClock "0:00:03"]

1. e4 {[%clk 0:03:00]}  e5 {[%clk 0:02:53]} 2. Nf3 {[%clk 0:03:00]}  Nf6 {[%clk 0:02:53]} 3. Nxe5 {[%clk 0:02:57]}  d6 {[%clk 0:02:54]} 4. Nf3 {[%clk 0:02:57]}  Nxe4 {[%clk 0:02:53]} 5. Nc3 {[%clk 0:02:57]}  Nxc3 {[%clk 0:02:54]} 6. dxc3 {[%clk 0:02:57]}  Be7 {[%clk 0:02:55]} 7. Be3 {[%clk 0:02:56]}  Nc6 {[%clk 0:02:54]} 8. Bd3 {[%clk 0:02:52]}  Be6 {[%clk 0:02:54]} 9. Qe2 {[%clk 0:02:52]}  Qd7 {[%clk 0:02:53]} 10. O-O-O {[%clk 0:02:46]}  a6 {[%clk 0:02:43]} 11. Ng5 {[%clk 0:02:37]}  Bxg5 {[%clk 0:02:39]} 12. Bxg5 {[%clk 0:02:36]}  O-O {[%clk 0:02:35]} 13. Kb1 {[%clk 0:02:19]}  Bf5 {[%clk 0:02:32]} 14. Bc4 {[%clk 0:02:10]}  Na5 {[%clk 0:02:09]} 15. Bd5 {[%clk 0:02:05]}  c6 {[%clk 0:02:09]} 16. Bf3 {[%clk 0:01:59]}  Rfe8 {[%clk 0:01:50]} 17. Qd2 {[%clk 0:01:57]}  d5 {[%clk 0:01:43]} 18. b3 {[%clk 0:01:47]}  Bg4 {[%clk 0:01:40]} 19. c4 {[%clk 0:01:38]}  Bxf3 {[%clk 0:00:58]} 20. gxf3 {[%clk 0:01:37]}  Qf5 {[%clk 0:00:44]} 21. cxd5 {[%clk 0:01:22]}  cxd5 {[%clk 0:00:44]} 22. Qxd5 {[%clk 0:01:19]}  Re5 {[%clk 0:00:32]} 23. Qd2 {[%clk 0:00:47]}  Nc6 {[%clk 0:00:24]} 24. Rhg1 {[%clk 0:00:43]}  Rae8 {[%clk 0:00:20]} 25. Bh6 {[%clk 0:00:38]}  g6 {[%clk 0:00:20]} 26. Be3 {[%clk 0:00:38]}  Qxf3 {[%clk 0:00:20]} 27. Qd7 {[%clk 0:00:35]}  R5e7 {[%clk 0:00:17]} 28. Qd6 {[%clk 0:00:35]}  Re6 {[%clk 0:00:16]} 29. Qc5 {[%clk 0:00:33]}  Re5 {[%clk 0:00:16]} 30. Qc3 {[%clk 0:00:33]}  R5e6 {[%clk 0:00:14]} 31. h4 {[%clk 0:00:32]}  h5 {[%clk 0:00:12]} 32. Rd3 {[%clk 0:00:28]}  Qf6 {[%clk 0:00:11]} 33. Qc5 {[%clk 0:00:25]}  Qe5 {[%clk 0:00:10]} 34. Qb6 {[%clk 0:00:22]}  Qb5 {[%clk 0:00:07]} 35. Qc7 {[%clk 0:00:22]}  Ne5 {[%clk 0:00:05]} 36. Rd8 {[%clk 0:00:19]}  Nf3 {[%clk 0:00:02]} 37. Rxe8+ {[%clk 0:00:18]}  Rxe8 {[%clk 0:00:02]} 38. Rd1 {[%clk 0:00:18]}  Qc6 {[%clk 0:00:02]} 39. Qf4 {[%clk 0:00:17]}  Ne5 {[%clk 0:00:02]} 40. Bd4 {[%clk 0:00:16]}  Qe6 {[%clk 0:00:02]} 41. Re1 {[%clk 0:00:15]}  Nc6 {[%clk 0:00:02]} 42. Rxe6 {[%clk 0:00:14]}  Rxe6 {[%clk 0:00:03]} 43. Bc3 {[%clk 0:00:11]}  Re8 {[%clk 0:00:03]} 44. Qf6 {[%clk 0:00:11]}  Rd8 {[%clk 0:00:03]} 45. Qg7# {[%clk 0:00:10]} 1-0


[Site "https://www.chess.com"]

[Event "Titled Tuesday Blitz August 17 2021"]
[White "Buscar, Michael"]
[Black "Sonis, Francesco"]
[WhiteFideId "2603616"]
[BlackFideId "895733"]
[WhiteElo "2010"]
[BlackElo "2373"]
[Result "0-1"]
[Round "04"]
[TimeControl "180+1"]
[Date "2021.08.18"]
[WhiteClock "0:00:11"]
[BlackClock "0:01:22"]

1. d4 {[%clk 0:03:00]}  Nf6 {[%clk 0:02:58]} 2. c4 {[%clk 0:03:01]}  c6 {[%clk 0:02:57]} 3. Nf3 {[%clk 0:02:59]}  d5 {[%clk 0:02:58]} 4. g3 {[%clk 0:02:56]}  Bf5 {[%clk 0:02:53]} 5. Bg2 {[%clk 0:02:56]}  e6 {[%clk 0:02:52]} 6. O-O {[%clk 0:02:49]}  h6 {[%clk 0:02:52]} 7. Nbd2 {[%clk 0:02:43]}  Nbd7 {[%clk 0:02:51]} 8. b3 {[%clk 0:02:39]}  a5 {[%clk 0:02:47]} 9. a4 {[%clk 0:02:35]}  Bb4 {[%clk 0:02:45]} 10. Ba3 {[%clk 0:02:34]}  Qe7 {[%clk 0:02:42]} 11. Qc1 {[%clk 0:02:26]}  O-O {[%clk 0:02:41]} 12. c5 {[%clk 0:02:09]}  Bxa3 {[%clk 0:02:39]} 13. Qxa3 {[%clk 0:02:09]}  Ne4 {[%clk 0:02:35]} 14. b4 {[%clk 0:02:03]}  axb4 {[%clk 0:02:32]} 15. Qxb4 {[%clk 0:02:03]}  b6 {[%clk 0:02:32]} 16. Nxe4 {[%clk 0:01:44]}  Bxe4 {[%clk 0:02:25]} 17. Rfc1 {[%clk 0:01:43]}  bxc5 {[%clk 0:02:21]} 18. dxc5 {[%clk 0:01:10]}  Rfb8 {[%clk 0:02:14]} 19. Qc3 {[%clk 0:01:08]}  Bxf3 {[%clk 0:02:08]} 20. Bxf3 {[%clk 0:01:05]}  f5 {[%clk 0:02:02]} 21. e3 {[%clk 0:00:59]}  Qf6 {[%clk 0:01:58]} 22. Qc2 {[%clk 0:00:45]}  Ra5 {[%clk 0:01:56]} 23. Rcb1 {[%clk 0:00:24]}  Rxb1+ {[%clk 0:01:47]} 24. Qxb1 {[%clk 0:00:25]}  Nxc5 {[%clk 0:01:44]} 25. Bd1 {[%clk 0:00:18]}  Qc3 {[%clk 0:01:37]} 26. Ra2 {[%clk 0:00:18]}  Kh7 {[%clk 0:01:32]} 27. Kg2 {[%clk 0:00:18]}  Nd3 {[%clk 0:01:25]} 28. Qb6 {[%clk 0:00:14]}  Qc5 {[%clk 0:01:23]} 29. Qb3 {[%clk 0:00:11]}  Nc1 {[%clk 0:01:22]} 0-1


[Site "https://www.chess.com"]

[Event "Titled Tuesday Blitz August 17 2021"]
[White "Chirila, Ioan-Cristian"]
[Black "Koellner, Ruben Gideon"]
[WhiteFideId "1211668"]
[BlackFideId "12993093"]
[WhiteElo "2445"]
[BlackElo "2499"]
[Result "0-1"]
[Round "04"]
[TimeControl "180+1"]
[Date "2021.08.17"]
[WhiteClock "0:00:02"]
[BlackClock "0:00:17"]

1. d4 {[%clk 0:03:00]}  d6 {[%clk 0:03:00]} 2. Nf3 {[%clk 0:02:59]}  Nf6 {[%clk 0:03:01]} 3. g3 {[%clk 0:02:42]}  g6 {[%clk 0:03:01]} 4. Bg2 {[%clk 0:02:42]}  Bg7 {[%clk 0:03:01]} 5. O-O {[%clk 0:02:41]}  O-O {[%clk 0:03:02]} 6. c4 {[%clk 0:02:34]}  Nbd7 {[%clk 0:03:02]} 7. Nc3 {[%clk 0:02:31]}  Re8 {[%clk 0:03:02]} 8. e4 {[%clk 0:02:29]}  e5 {[%clk 0:03:02]} 9. Qc2 {[%clk 0:02:26]}  c6 {[%clk 0:03:01]} 10. h3 {[%clk 0:02:17]}  h6 {[%clk 0:03:00]} 11. Be3 {[%clk 0:02:13]}  Kh7 {[%clk 0:03:00]} 12. Rad1 {[%clk 0:02:11]}  Qc7 {[%clk 0:02:59]} 13. Rfe1 {[%clk 0:02:07]}  a6 {[%clk 0:02:57]} 14. b3 {[%clk 0:02:00]}  b5 {[%clk 0:02:56]} 15. c5 {[%clk 0:01:58]}  dxc5 {[%clk 0:02:50]} 16. dxe5 {[%clk 0:01:44]}  Ng8 {[%clk 0:02:21]} 17. Bf4 {[%clk 0:01:37]}  Nxe5 {[%clk 0:02:11]} 18. Nxe5 {[%clk 0:01:30]}  Bxe5 {[%clk 0:02:12]} 19. Bxe5 {[%clk 0:01:31]}  Qxe5 {[%clk 0:02:11]} 20. f4 {[%clk 0:01:31]}  Qe7 {[%clk 0:02:07]} 21. e5 {[%clk 0:01:32]}  Bf5 {[%clk 0:01:51]} 22. Qf2 {[%clk 0:01:31]}  Rac8 {[%clk 0:01:48]} 23. g4 {[%clk 0:01:30]}  Bd7 {[%clk 0:01:39]} 24. Ne4 {[%clk 0:01:30]}  c4 {[%clk 0:01:36]} 25. bxc4 {[%clk 0:01:24]}  bxc4 {[%clk 0:01:36]} 26. Nd6 {[%clk 0:01:24]}  c5 {[%clk 0:01:32]} 27. Bd5 {[%clk 0:01:14]}  Be6 {[%clk 0:01:30]} 28. Bxe6 {[%clk 0:01:08]}  Qxe6 {[%clk 0:01:31]} 29. Nxe8 {[%clk 0:01:09]}  Qxe8 {[%clk 0:01:29]} 30. Qe2 {[%clk 0:00:59]}  Qa4 {[%clk 0:01:16]} 31. Rc1 {[%clk 0:00:56]}  c3 {[%clk 0:01:10]} 32. f5 {[%clk 0:00:48]}  gxf5 {[%clk 0:01:04]} 33. gxf5 {[%clk 0:00:48]}  Ne7 {[%clk 0:01:04]} 34. f6 {[%clk 0:00:37]}  Rg8+ {[%clk 0:00:59]} 35. Kh1 {[%clk 0:00:38]}  Nf5 {[%clk 0:00:56]} 36. Qd3 {[%clk 0:00:22]}  Qc6+ {[%clk 0:00:50]} 37. Re4 {[%clk 0:00:15]}  Ng3+ {[%clk 0:00:47]} 38. Kh2 {[%clk 0:00:15]}  Qxe4 {[%clk 0:00:47]} 39. Rxc3 {[%clk 0:00:13]}  Qxd3 {[%clk 0:00:31]} 40. Rxd3 {[%clk 0:00:14]}  Ne4 {[%clk 0:00:21]} 41. Re3 {[%clk 0:00:12]}  Ng5 {[%clk 0:00:20]} 42. Rd3 {[%clk 0:00:10]}  Ne6 {[%clk 0:00:19]} 43. Rd6 {[%clk 0:00:09]}  Rc8 {[%clk 0:00:16]} 44. Rxa6 {[%clk 0:00:05]}  c4 {[%clk 0:00:17]} 45. Rb6 {[%clk 0:00:01]}  c3 {[%clk 0:00:17]} 46. Rb1 {[%clk 0:00:02]}  c2 {[%clk 0:00:17]} 47. Rc1 {[%clk 0:00:03]}  Nd4 {[%clk 0:00:17]} 48. e6 {[%clk 0:00:03]}  fxe6 {[%clk 0:00:17]} 49. f7 {[%clk 0:00:02]}  Kg7 {[%clk 0:00:17]} 0-1


[Site "https://www.chess.com"]